Cogmind - Beta 13 @@@ ROGUE MODE // 2024.05.18 @ 18:15:24 Player: mrwizrd Result: Destroyed by C-17 Slicer with Blade Saw Performance ------------- Evolutions (3) 1500 Regions Visited (6) 1200 Robots Destroyed (41) 205 Value Destroyed (1152) 1152 Prototype IDs (5) 100 Alien Tech Used (0) 0 Bonus (546) 546 TOTAL SCORE: 4703 Bonus ------- High Alert Combat Kills 46 Entered DSFs 500 Cogmind --------- Core Integrity 0/700 Matter 5/300 Energy 98/100 System Corruption 0% Temperature Cool (0) Movement Core (50) Location -7/DSF Parts ------- > --- POWER (1) -------- (None) > --- PROPULSION (3) --- (None) > --- UTILITY (6) ------ (None) > --- WEAPON (3) ------- (None) > --- INVENTORY (5) ---- Light Treads High-capacity Storage Unit Drone Bay (2/2) Peak State ------------ > --- POWER ------------ Improved Ion Engine > --- PROPULSION ------- Light Treads Light Treads > --- UTILITY ---------- Improved Terrain Scanner Terrain Scan Processor Seismic Detector Drone Bay > --- WEAPON ----------- Beam Rifle Mini Grenade Launcher > --- INVENTORY -------- Light Ion Engine Light Treads High-capacity Storage Unit Hardened Light Armor Plating Mining Laser [Rating: 19] Favorites ----------- Power Light Ion Engine Engine Light Ion Engine Propulsion Light Treads Treads Light Treads Hover Unit Improved Hover Unit Flight Unit Improved Flight Unit Utility Seismic Detector Device Seismic Detector Storage Small Storage Unit Processor Terrain Scan Processor Protection Propulsion Shielding Weapon Medium Laser Energy Gun Medium Laser Energy Cannon Phase Cannon Ballistic Gun Assault Rifle Launcher Grenade Launcher Special Weapon Mining Laser Build | -11 -10 -9 -9 -8 -7 -7 ------- Run | Yrd Mat Mat Sto Mat Fac DSF Slots Evolved 6 | . . 2 . 2 2 . Power . | . . . . . . . Propulsion 1 | . . . . . 1 . Utility 4 | . . 2 . 2 . . Weapon 1 | . . . . . 1 . Parts Attached 54 | 10 1 12 26 . . 5 Power 9 | 1 . 2 5 . . 1 Engine 9 | 1 . 2 5 . . 1 Core . | . . . . . . . Reactor . | . . . . . . . Propulsion 9 | 2 . 2 5 . . . Treads 6 | 2 . 2 2 . . . Leg . | . . . . . . . Wheel . | . . . . . . . Hover 1 | . . . 1 . . . Flight 2 | . . . 2 . . . Utility 18 | 5 . 5 8 . . . Device 9 | 3 . . 6 . . . Storage 5 | 2 . 3 . . . . Processor 2 | . . . 2 . . . Hackware . | . . . . . . . Protection 2 | . . 2 . . . . Artifact . | . . . . . . . Weapon 18 | 2 1 3 8 . . 4 Energy Gun 5 | 1 . 1 3 . . . Energy Cannon 3 | . . . . . . 3 Ballistic Gun 3 | 1 . . 2 . . . Ballistic Cannon . | . . . . . . . Launcher 4 | . 1 1 1 . . 1 Special Weapon 3 | . . 1 2 . . . Impact Weapon . | . . . . . . . Slashing Weapon . | . . . . . . . Piercing Weapon . | . . . . . . . Special Melee Weapon . | . . . . . . . Unidentified Prototypes 5 | . . . 4 . . 1 Parts Lost 18 | . . 1 15 1 . 1 Power 3 | . . . 3 . . . Propulsion 5 | . . . 4 1 . . Utility 4 | . . . 4 . . . Weapon 6 | . . 1 4 . . 1 Highest Loss Streak 5 | . . 1 5 1 . 1 To Critical Strikes 1 | . . . 1 . . . Average Slot Usage (%) 90 | . 100 100 86 23 15 5 Engine 9 | . 14 11 8 . . . Treads 19 | . 28 22 17 . . . Device 20 | . 28 22 19 . . . Storage 6 | . . 11 . . . . Processor 4 | . . . 14 18 15 5 Protection 7 | . . 11 3 . . . Energy Gun 3 | . 14 1 6 . . . Launcher 9 | . 10 9 9 . . . Special Weapon 6 | . . 10 1 . . . Naked Turns 46 | . . . . . . 46 Heaviest Build 57 | 13 10 57 19 . . 8 Greatest Support 40 | 40 40 40 40 5 3 3 Greatest Overweight (x) 2 | . . 1 2 . . 2 Average Overweight (x) . | . . . . . . . Largest Inventory Capacity 20 | 8 5 20 5 5 5 5 Average Capacity 6 | 7 5 5 5 5 5 5 Most Carried 5 | 3 5 5 5 5 5 5 Average Carried 2 | . 4 3 4 5 5 4 Final Capacity 20 | 5 5 20 5 5 5 5 Final Carried 5 | 3 5 5 5 5 5 3 Class Distribution -------------------- 60% | Mutant 39% | Scavenger-Mutant Dominant Class ---------------- Mutant | -10/Materials Scavenger-Mutant | -9/Materials Scavenger-Mutant | -9/Storage Mutant | -8/Materials Mutant | -7/Factory Mutant | -7/DSF Resources | -11 -10 -9 -9 -8 -7 -7 ----------- Run | Yrd Mat Mat Sto Mat Fac DSF Matter Collected 836 | 300 34 83 367 . . 52 Remotely . | . . . . . . . Salvage Created 839 | . 235 165 439 . . . Parts 57 | . 17 12 28 . . . Haulers Intercepted . | . . . . . . . Recyclers Shooed . | . . . . . . . Parts Field Recycled . | . . . . . . . Retrieved Matter . | . . . . . . . Parts Self-Destructed . | . . . . . . . Prevented . | . . . . . . . Kills | -11 -10 -9 -9 -8 -7 -7 ------- Run | Yrd Mat Mat Sto Mat Fac DSF Combat Hostiles Destroyed 32 | . 10 4 18 . . . Guns 7 | . . 2 5 . . . AOE 25 | . 10 2 13 . . . Classes Destroyed 8 | . 4 2 2 . . . Worker 2 | . . . 2 . . . Builder 3 | . 1 . 2 . . . Recycler 1 | . . . 1 . . . Watcher 3 | . 2 . 1 . . . Swarmer 7 | . 3 . 4 . . . Grunt 18 | . 7 2 9 . . . Duelist 2 | . . 1 1 . . . Sentry 5 | . . 1 4 . . . Best Kill Streak 7 | . 7 3 5 . . . Combat Bots Only 6 | . 6 3 4 . . . Max Kills in Single Turn 3 | . 2 1 3 . . . Gunslinging . | . . . . . . . Exploded 2 | . 2 1 2 . . . Melee . | . . . . . . . Uniques/NPCs Destroyed . | . . . . . . . Combat | -11 -10 -9 -9 -8 -7 -7 -------- Run | Yrd Mat Mat Sto Mat Fac DSF Hostile Shots Fired 233 | 1 26 13 121 12 . 60 Missed 98 | . 7 4 53 8 . 26 Damage Taken 2737 | 27 297 135 1305 59 . 914 Core 1123 | 9 40 10 316 43 . 705 Absorbed by Shields 22 | . . . . . . 22 Redirected to Shielding 6 | . . 6 . . . . Core Remaining (%) 71 | 96 80 . 18 92 . . Volleys Fired 101 | . 19 22 56 . . 4 Largest 2 | . 1 2 2 . . 1 Hottest 150 | . 30 150 100 . . 85 Shots Fired 117 | . 19 26 68 . . 4 Gun 44 | . 1 11 32 . . . Cannon 3 | . . . . . . 3 Launcher 53 | . 18 2 32 . . 1 Special 17 | . . 13 4 . . . Kinetic 5 | . 1 . 4 . . . Thermal 59 | . . 24 32 . . 3 Explosive 53 | . 18 2 32 . . 1 Electromagnetic . | . . . . . . . Robot Hit Streak 13 | . 4 6 13 . . 4 Robot Miss Streak 2 | . 2 . 2 . . 1 Penetration Max . | . . . . . . . Secondary Targets . | . . . . . . . Shots Hit Robots 56 | . 11 6 36 . . 3 Core Hits 70 | . 23 6 39 . . 2 Critical Kills . | . . . . . . . Critical Parts Destroyed . | . . . . . . . Critical Strikes 1 | . . 1 . . . . Burn 1 | . . 1 . . . . Melee Attacks . | . . . . . . . Impact . | . . . . . . . Slashing . | . . . . . . . Piercing . | . . . . . . . Sneak Attacks . | . . . . . . . Combat Hostiles . | . . . . . . . Follow-up Attacks . | . . . . . . . Damage Inflicted 3057 | . 762 187 1887 . . 221 Guns 396 | . 12 63 321 . . . Cannons 61 | . . . . . . 61 Explosions 2581 | . 750 124 1547 . . 160 Melee . | . . . . . . . Ramming 19 | . . . 19 . . . Kinetic 43 | . 12 . 31 . . . Thermal 414 | . . 63 290 . . 61 Explosive 2562 | . 731 124 1547 . . 160 Electromagnetic 19 | . 19 . . . . . Impact . | . . . . . . . Slashing . | . . . . . . . Piercing . | . . . . . . . Highest Corruption 2 | . . . 2 . . . Average Corruption 2 | . . . 2 . . . Corruption Purged . | . . . . . . . Corruption Blocked . | . . . . . . . Effects 8 | . . . 8 . . . Message Errors 2 | . . . 2 . . . Matter Fused 4 | . . . 4 . . . Heat Flow Errors 1 | . . . 1 . . . Data Loss (minor) 1 | . . . 1 . . . Overload Shots . | . . . . . . . Overflow Damage 66 | . 31 . 33 . . 2 Projectiles . | . . . . . . . Explosions 66 | . 31 . 33 . . 2 Melee . | . . . . . . . Knockbacks . | . . . . . . . Impact . | . . . . . . . Kinetic . | . . . . . . . Secondary . | . . . . . . . Self-Inflicted Damage 506 | . 117 25 316 . . 48 Shots 19 | . 5 1 12 . . 1 Rammed 12 | . . . 12 . . . Targets Rammed 13 | . . . 13 . . . Kicked . | . . . . . . . Crushed 1 | . . . 1 . . . Highest Temperature 174 | . 1 174 90 . . . Average Temperature 30 | . 1 45 19 . . . Received Heat Transfer 352 | . 42 51 213 36 . 10 Siege Activations . | . . . . . . . Robots Corrupted . | . . . . . . . Combat Hostiles . | . . . . . . . Parts Fried . | . . . . . . . Impact Corruptions . | . . . . . . . Robots Melted . | . . . . . . . Combat Hostiles . | . . . . . . . Parts Melted . | . . . . . . . Heat Transferred 999 | . . 259 666 . . 74 Parts Sabotaged . | . . . . . . . Parts Stolen . | . . . . . . . Parts Stripped . | . . . . . . . Power Chain Reactions . | . . . . . . . Alert | -11 -10 -9 -9 -8 -7 -7 ------- Run | Yrd Mat Mat Sto Mat Fac DSF Peak Influence 511 | . 381 171 511 245 121 125 Initial 215 | . . 160 . 215 106 84 Average 48 | . 158 31 215 229 109 104 Maximum Alert Level 2 | . 1 . 2 1 . . Low Security (%) 91 | 100 54 100 49 . 100 100 Level 1 4 | . 45 . 18 100 . . Level 2 4 | . . . 32 . . . Level 3 . | . . . . . . . Level 4 . | . . . . . . . Level 5 . | . . . . . . . High Security . | . . . . . . . Max Security . | . . . . . . . Squads Dispatched 9 | . 3 . 3 1 . 2 Investigation 2 | . 1 . 1 . . . Extermination . | . . . . . . . Reinforcement 7 | . 2 . 2 1 . 2 Assault . | . . . . . . . Garrison . | . . . . . . . Intercept . | . . . . . . . Searches Triggered . | . . . . . . . Construction Impeded 1 | . . . 1 . . . Haulers Reinforced . | . . . . . . . Active Scanning Responses . | . . . . . . . Cargo Convoy Interrupts . | . . . . . . . Stealth | -11 -10 -9 -9 -8 -7 -7 --------- Run | Yrd Mat Mat Sto Mat Fac DSF Distress Signals 6 | 1 2 . 3 . . . Communications Jammed . | . . . . . . . Distress Signals . | . . . . . . . Times Spotted 55 | 1 14 6 22 4 . 8 Peak Tracking Total 5 | . 3 3 4 3 . 5 Tactical Retreats 2 | . . . . . . 2 Traps | -11 -10 -9 -9 -8 -7 -7 ------- Run | Yrd Mat Mat Sto Mat Fac DSF Traps Triggered 3 | . . . 2 . . 1 Indirectly . | . . . . . . . Trap Hack Attempts . | . . . . . . . Triggered . | . . . . . . . Disarmed . | . . . . . . . Reprogrammed . | . . . . . . . Reused . | . . . . . . . Traps Extracted . | . . . . . . . Installed . | . . . . . . . Triggered . | . . . . . . . Machines | -11 -10 -9 -9 -8 -7 -7 ---------- Run | Yrd Mat Mat Sto Mat Fac DSF Machines Disabled 8 | . 1 . 7 . . . Max in Single Turn 2 | . 1 . 2 . . . Machines Repaired . | . . . . . . . Machines Dismantled 1 | . . . 1 . . . Machines Sabotaged . | . . . . . . . Overloaded Fab Kills . | . . . . . . . Hacking | -11 -10 -9 -9 -8 -7 -7 --------- Run | Yrd Mat Mat Sto Mat Fac DSF Machines Accessed 8 | . 1 2 3 1 1 . Terminals 6 | . 1 2 1 1 1 . Fabricators . | . . . . . . . Repair Stations . | . . . . . . . Recycling Units 2 | . . . 2 . . . Scanalyzers . | . . . . . . . Garrison Access . | . . . . . . . Total Hacks 15 | . 3 3 6 2 1 . Successful 8 | . . 2 4 1 1 . Failed 7 | . 3 1 2 1 . . Catastrophic 2 | . 1 . . 1 . . Database Lockouts . | . . . . . . . Manual 4 | . 3 1 . . . . Terminals 10 | . 3 3 1 2 1 . Fabricators . | . . . . . . . Repair Stations . | . . . . . . . Recycling Units 5 | . . . 5 . . . Scanalyzers . | . . . . . . . Garrison Access . | . . . . . . . Terminal Hacks 5 | . . 2 1 1 1 . Open Door 1 | . . . 1 . . . Open DSF 1 | . . . . . 1 . Alert Level 1 | . . . . 1 . . Unreport Threat 1 | . . 1 . . . . Zone Layout 1 | . . 1 . . . . Fabricator Hacks . | . . . . . . . Repair Station Hacks . | . . . . . . . Recycling Unit Hacks 3 | . . . 3 . . . Retrieve Matter 1 | . . . 1 . . . Retrieve Components 2 | . . . 2 . . . Scanalyzer . | . . . . . . . Garrison Access Hacks . | . . . . . . . Unauthorized Hacks . | . . . . . . . Terminals . | . . . . . . . Fabricators . | . . . . . . . Repair Stations . | . . . . . . . Recycling Units . | . . . . . . . Scanalyzers . | . . . . . . . Garrison Access . | . . . . . . . Data Cores Recovered . | . . . . . . . Used . | . . . . . . . Hacking Detections 3 | . 1 . 1 1 . . Full Trace Events 1 | . 1 . . . . . Feedback Events . | . . . . . . . Feedback Blocked . | . . . . . . . Robot Schematics Acquired . | . . . . . . . Robots Built . | . . . . . . . Authchips . | . . . . . . . Time . | . . . . . . . Total Robot Build Rating . | . . . . . . . Part Schematics Acquired . | . . . . . . . Parts Built . | . . . . . . . Authchips . | . . . . . . . Time . | . . . . . . . Total Part Build Rating . | . . . . . . . Parts Repaired . | . . . . . . . Time . | . . . . . . . Parts Recycled . | . . . . . . . Recycled Matter . | . . . . . . . Retrieved Matter . | . . . . . . . Retrieved Components 12 | . . . 12 . . . Parts Scanalyzed . | . . . . . . . Part Schematics Acquired . | . . . . . . . Parts Damaged . | . . . . . . . Bothacking | -11 -10 -9 -9 -8 -7 -7 ------------ Run | Yrd Mat Mat Sto Mat Fac DSF Used RIF Installer . | . . . . . . . Robots Hacked . | . . . . . . . Non-combat . | . . . . . . . Combat . | . . . . . . . Robot Hacks Applied . | . . . . . . . Relay Couplers Released . | . . . . . . . Fabnet Peak Effective % . | . . . . . . . Robots Rewired . | . . . . . . . Allies Hacked . | . . . . . . . Hacks Repelled . | . . . . . . . Allies | -11 -10 -9 -9 -8 -7 -7 -------- Run | Yrd Mat Mat Sto Mat Fac DSF Total Allies . | . . . . . . . Largest Group . | . . . . . . . Highest-Rated Group . | . . . . . . . Highest-Rated Ally . | . . . . . . . Total Orders 6 | . . . 6 . . . EXPLORE 6 | . . . 6 . . . Ally Attacks . | . . . . . . . Total Damage . | . . . . . . . Kills . | . . . . . . . Allies Corrupted . | . . . . . . . Allies Melted . | . . . . . . . Intel | -11 -10 -9 -9 -8 -7 -7 ------- Run | Yrd Mat Mat Sto Mat Fac DSF Robot Analysis Total . | . . . . . . . Derelict Logs Recovered . | . . . . . . . Drone Launches 6 | . . . 6 . . . Drone Recoveries 4 | . . . 4 . . . Exploration | -11 -10 -9 -9 -8 -7 -7 ------------- Run | Yrd Mat Mat Sto Mat Fac DSF Turns Passed 9037 | 4340 323 2850 1161 72 197 94 Spaces Moved 2623 | 1255 141 127 389 163 393 155 Core 709 | 4 . . 89 68 393 155 Treads 1730 | 1251 141 127 211 . . . Legs . | . . . . . . . Wheels . | . . . . . . . Hover . | . . . . . . . Flight 184 | . . . 89 95 . . Fastest Speed 37 | 50 160 160 37 40 50 50 Average Speed 123 | 159 160 163 119 44 50 50 Slowest Speed 240 | 160 160 240 160 50 50 150 Overloaded Moves . | . . . . . . . Propulsion Burnouts . | . . . . . . . Robots Hopped 2 | . . . 2 . . . Cave-ins Triggered 1 | . . . 1 . . . Exploration Rate (%) 38 | 72 27 9 64 22 10 68 Regions Visited 6 Branch Regions 1 Pre-discovered Areas . | . . . . . . . Known Exits Taken 1 | . . . . . 1 . Unknown Exits Taken 5 | 1 1 1 1 1 . . Scrap Searched . | . . . . . . . Spaces Dug 14 | . . 11 3 . . . Terrain Destroyed 320 | . 81 30 203 . . 6 Melee . | . . . . . . . Projectile 14 | . . 11 3 . . . AOE 306 | . 81 19 200 . . 6 Terrain Rammed . | . . . . . . . Walls Destroyed . | . . . . . . . Machines Disabled . | . . . . . . . Actions | -11 -10 -9 -9 -8 -7 -7 --------- Run | Yrd Mat Mat Sto Mat Fac DSF Total 8237 | 3587 220 2721 990 162 392 165 Wait 5409 | 2320 58 2545 486 . . . Move 2613 | 1254 140 126 384 162 392 155 Hop 1 | . . . 1 . . . Pick Up 17 | 2 1 6 8 . . . Fast Attach 24 | 8 1 3 9 . . 3 Attach 13 | . . 4 7 . . 2 Detach 4 | 1 1 1 1 . . . Swap 17 | 2 . 5 10 . . . Drop 18 | . . 9 9 . . . Fire 101 | . 19 22 56 . . 4 Melee . | . . . . . . . Ram . | . . . . . . . Kick . | . . . . . . . Crush 13 | . . . 13 . . . Escape Stasis 2 | . . . 1 . . 1 Rewire . | . . . . . . . Trap . | . . . . . . . Miscellaneous 5 | . . . 5 . . . Route ------- -11/Scrapyard -10/Materials -9/Materials -9/Storage -8/Materials -7/Factory -7/DSF History --------- Turn | Location | Event 7 | -11/Scrapyard | Discovered new exit (range 15) 2738 | -11/Scrapyard | Assembled infested the area 4341 | -11/Scrapyard | Entered Materials 4342 | -10/Materials | Build established: Mutant 4624 | -10/Materials | Discovered new exit (range 13) 4664 | -10/Materials | Entered another Materials area 4664 | -9/Materials | Evolved 2 slots: Utility x2 5042 | -9/Materials | Build established: Scavenger-Mutant 7466 | -9/Materials | Discovered new exit (range 4) 7514 | -9/Materials | Entered Storage 8135 | -9/Storage | Crushed by falling debris 8445 | -9/Storage | Core integrity fell below 50% 8475 | -9/Storage | Lost 4 parts (1p2u1w) 8569 | -9/Storage | Lost 5 parts (1p2n2w) 8571 | -9/Storage | Core integrity fell below 20% 8665 | -9/Storage | Discovered new exit (range 16) 8675 | -9/Storage | Entered Materials 8675 | -8/Materials | Evolved 2 slots: Utility x2 8730 | -8/Materials | Build established: Mutant 8739 | -8/Materials | Discovered new exit (range 16) 8747 | -8/Materials | Entered Factory 8747 | -7/Factory | Evolved 2 slots: Propulsion x1, Weapon x1 8943 | -7/Factory | Identified exit to DSF 8944 | -7/Factory | Entered DSF 8962 | -7/DSF | Additional patrols routed to DSF 8977 | -7/DSF | Released all parts (1) 8994 | -7/DSF | Core integrity fell below 50% 9010 | -7/DSF | Core integrity fell below 20% 9038 | -7/DSF | Destroyed by C-17 Slicer with Blade Saw Last Messages --------------- these modes and how to activate them in the manual under Alternative Rules. Knocked back. Phase Cannon severed. Acquired Phase Cannon. Phase Cannon severed. Phase Cannon blasted off. Acquired 2 matter. Triggered Stasis Trap. A bubble of rippling energy engulfs the area. Field strength at 94. Field strength at 81. Penetrated by Slug. Knocked back. Field strength at 61. Field strength at 56. Field strength at 51. Field strength at 46. Slug penetrates C-17 Slicer. C-17 Slicer destroyed. Map ----- +----------------------------------------------------+ | ????????????????????????????????????????????????? | | ????????????????????????????????????????????????? | | ??????????????????????????????????????##????????? | | ?????????????????????????????????????#""????????? | | ?????????????????????????????????????#"#????????? | | ????????????????????#########???????##"####?????? | | ????????????????????#[[===//#########"""""#?????? | | ????????????????????#[[===//# #[[##"""""#?????? | | ????????????????????# ""##"#??? | | ????????????????????# """""#??? | | ????????????????????### ### #[[## ""###???? | | ????????????????????##; Y### #[[### ###?????? | | ????????????????????# ########## ##??????? | | ????????????????????# #??????#]] [#??????? | | ????????????????????# %= #??????#]] [#??????? | | ????????????????????### / ###??????### ##??????? | | ????????????????????#]]% !!#??????#[[ #??????? | | ????????????????????#]] !!/ #??#[[ #??????? | | ????????????????????#]]% g!!#####??#[[ #??????? | | ????????????????###?### g############ ###?????? | | ????????????#!??#!!!# H ##]]]#[[[## //#?????? | | ???????]] ##!!!#!!!# *! a ##]]]#[[[## //##????? | | ??????#== =* "#????? | | ??????#== %##????? | | ??????#== c! #?????? | | ???????!! ##[[[#/// a @ %## !!# "# !!#?????? | | ????????????#[[?#///### *###!!!# ## !!#?????? | | ????????????##??####??# #?###############?????? | | ?????????????????????!! !!????????????????????? | | ????????????????????#!! !!#???????????????????? | | ????????????????????#!! !!#???????????????????? | | ????????????????????### ###???????????????????? | | ??????????????????????! ]?????????????????????? | | ??????????????????????! ]?????????????????????? | | ?????????????????????!! ]]????????????????????? | | ?????????????????????## ##????????????????????? | | ??????????????????????# #?????????????????????? | | ?????????????????????? ?????????????????????? | | ?????????????????????? ?????????????????????? | | ?????????????????????? === ?????????????????????? | | ?????????????????????? === ?????????????????????? | | ????????????????????????????????????????????????? | | ????????????????????????????????????????????????? | | ????????????????????????????????????????????????? | | ????????????????????????????????????????????????? | | ????????????????????????????????????????????????? | | ????????????????????????????????????????????????? | | ????????????????????????????????????????????????? | | ????????????????????????????????????????????????? | | | +----------------------------------------------------+ Best States ------------- Heat Dissipation 34 Energy Generation 14 Energy Capacity 280 Matter Stores 350 Matter Capacity 350 Sight Range 16 Terrain Scan Range 16 Terrain Scan Density 160 Armor Coverage 150 Propulsion Shielding 33 Evasion (%) 62 Recoil Reduction 2 Item Schematics ----------------- None Robot Schematics ------------------ None Fabricated ------------ Nothing Alien Tech Used ----------------- None Achievements -------------- Remodeling Challenges ------------ None Game ------ Seed ThrowingResetStabilizer Manual? 0 Play Time 00:57:29 Cumulative 19.9 hours Start 2024.05.18 @ 17:15:36 End 2024.05.18 @ 18:15:24 Sessions 1 Manual Loads 0 Difficulty Rogue Special Mode None Game No. 23 Rogue 23 Adventurer 0 Explorer 0 Win Type - Total 0 Types 0/0/0/0/0/0/0/0/0 Lore% 10 Gallery% 14 Achievement% 13 Wizard Run 0 Options --------- Layout 0 ASCII 0 Keyboard 1 Movement Arrows Keybinds 0 Fullscreen 2 Font 24/Crisp Map View 76x50 Zoom Use 0% Tactical HUD 0 Map Filters NONE Filters NONE Steam 1 RUN: de3d2f24-e0f2-4762-96b5-152c97d7f565